Workbook

Sheet 説明
A1: 「熱電対による表面温度測定の誤差解析」 解析解シートの説明
A4: １．概要
A5: ・ | B5: 図１のように，熱電対の測温接点を測定面に接着し，リード線の一部を等温面に這わせた場合の誤差解析を行います．
B6: （解析方法の詳細は，日本機械学会論文集, Vol.84, No.867, DOI: 10.1299/transjsme.18-00216 をご参照ください）
A8: ・ | B8: 簡単のため，測定面は等温（温度 Tw）であり，熱電対の接触により温度が変化しないと仮定しています．
B9: （一般に，測定面の熱容量が大きく熱伝導率が高い場合にはこの近似が成り立ちます）
F20: 図１ 熱電対による表面温度測定
A22: ・ | B22: 測温接点（junctiuon, 直径 dj）と測定面（measuring surface, 温度 Tw）は，接着剤（adhesive, 熱伝導率 ka）で
B23: 接着されています．
A24: ・ | B24: 一対の金属素線（metal wires，直径 dm）が被覆から露出している領域を“素線露出部(exposed region，長さ lm)”，
B25: 一対の被覆線（insulated wires，直径 di）がシースから露出している領域を“内側被覆部(inner insulated region, 長さ li)”
B26: と表記しています．また，それ以降のリード線は，2本の被覆線が1本のシース（等価直径 ds）に覆われており，
B27: そのうち加熱面に這わせている領域を“シース加熱部(heated sheathed region, 長さ ls)”，全周が空気流にさらされている
B28: 領域を“フィン部(fin region, 長さ ls')”と表記しています．
A31: ２．解析で考慮している伝熱経路
A32: ・ | B32: 図１の伝熱経路のうち，図８のように主要な伝熱経路のみを考慮して解析解を導出しています．
B33: （金属素線の熱伝導，および図８に示す熱抵抗 R を介した熱移動のみを考慮しています．ここでは簡単のため，
B34: 図１の内側被覆部とシース加熱部は素線露出部に置き換えています．また，測温接点からの熱伝達（対流+放射）は
B35: 小さいので考慮していません．絶縁テープの熱抵抗は，素線露出部の隙間の熱抵抗 Rgmに加算して考慮可能です）
F48: 図８ 解析解で考慮した伝熱経路
A50: ・ | B50: 各熱抵抗の記号，意味，および論文中の式番号は以下の通りです．
B51: Rj | C51: 測温接点と測定面間の熱抵抗 | H51: 式(10)
B52: Rgm | C52: 素線露出部と測定面間の熱抵抗 | H52: 式(11)
B53: Rhm | C53: 素線露出部と空気流間の熱抵抗（対流+放射） | H53: 式(7)
B54: Rs' | C54: 被覆+シース（フィン部）の厚さ方向の熱抵抗 | H54: 式(17)' | I54: (式(17)の2lc→ls', ki=ks)
B55: Rhs' | C55: フィン部からの熱伝達による熱抵抗（対流+放射） | H55: 式(18)' | I55: (式(18)の2lc→ls')
A58: ３．解析解シートの使い方
A59: (1) | B59: 「解析解」シートの水色のセルに条件を入力します．
B60: 熱電対の種類 | D60: T or K | F60: T熱電対の場合は"T"を，K熱電対の場合は"K"を入力
D61: 素線径 dm | F61: 金属素線の直径を入力
B62: 測温接点 | D62: 隙間の熱伝導率 ka | F62: 測温接点と測定面間の接着剤の熱伝導率を入力
F63: 瞬間接着剤は0.1W/(m・K)程度，導電性接着剤は1~4W/(m・K)程度，はんだは50W/(m・K)程度
B64: 素線露出部 | D64: 長さ lm | F64: 素線露出部の長さを入力
B65: 熱伝達率 | D65: 周囲風速 u | F65: 測定面の周囲風速（時間平均風速）を入力
D66: 測定面辺長 L | F66: 測定面の流れ方向辺長（論文の式(32)の Lの値）を入力
D67: ※ 測定面の対流熱伝達率が推定できる場合は，hcv (I24)の値を直接入力（この場合，測定面辺長は入力不要）
D68: ※ フィン表面の対流熱伝達率が推定できる場合は，hcv' (I27)の値を直接入力
B69: 測定面温度 | F69: 測定面温度 Tw を入力
B70: 周囲空気温度 | F70: 周囲空気温度 Tf を入力
A72: (1)' | B72: 必要に応じて，以下の値を入力します
B73: 測温接点 | D73: 直径 dj | F73: 測温接点の直径を入力．デフォルト値として，素線径の2倍の値が入力されています
D74: 測定面との隙間 gj | F74: 最小隙間（実効値）を入力
F75: デフォルト値として，論文で評価された値(0.01mm)が入力されています
B76: 素線露出部 | D76: 測定面との隙間 gm | F76: 最小隙間（実効値）を入力
F77: デフォルト値として，論文で評価された値(0.0721mm, 絶縁テープを加味)が入力されています
D78: 隙間の熱伝導率 kg | F78: 隙間が接着剤等で充填されている場合は，充填剤の熱伝導率を入力
F79: デフォルト値として，空気の熱伝導率が入力されています
B80: フィン部 | D80: シース等価直径 ds | F80: シースの長辺と短辺の平均値を入力
F81: デフォルト値として，素線径の8倍の値が入力されています
D82: シースの熱伝導率 ks | F82: シース材の熱伝導率を入力．デフォルト値として，0.2W(m・K)が入力されています
D83: 長さ ls' | F83: フィン部の長さを入力．デフォルト値として，20mmが入力されています
F84: (ある程度以上の長さになると誤差率が変化しなくなりますが，グラフの描画範囲が変化します)
B85: 熱伝達率 | D85: 金属素線の放射率 | F85: 金属素線2本の放射率の平均値を入力．デフォルト値として0.2が入力されています
D86: シース表面の放射率 | F86: シース材表面の放射率を入力．デフォルト値として0.9が入力されています
A88: (2) | B88: 「計算実行」のボタンを押す
B89: → マクロ（SOLVE2）が実行され，解析解を満たす金属素線の温度分布（X21~X121）が計算されると共に，
B90: 誤差率（X3）が計算されます．
B91: （マクロでは，ソルバーを用いて熱流量の保存を満たす測温接点温度（Tj, M4）およびフィン部始端温度（T0', M5）を求めています）
B93: 誤差率は ηerrは次式で定義されます. | F93: ηerr = (Tw - Tj)/(Tw - Tf) ×100 (%)
B95: ※ 計算実行の際は，あらかじめマクロを利用できる設定にしておく必要があります．
B96: また，アドインの設定により，ソルバーを利用できる設定にしておく必要があります．
A99: ４．ご利用に際して
A100: ・ | B100: 本解析シートはご自由にお使いください．ご利用しやすいように自由に加工していただいて構いません．
B101: ただし，ご利用に際して，何らかのトラブルや損失・損害等が発生したとしても，製作者は一切責任を負いません．
B103: 製作者： 防衛大学校 システム工学群 機械工学科 中村 元

Sheet 解析解
A1: 熱電対による表面温度測定の誤差解析（解析解）
B2: 空気の熱伝導率（Tw） | E2: =-0.000000022933*M2^2+0.000072925*M2+0.024175 -> 0.0298622288 | F2: W/(m・K) | J2: 測定面温度 | L2: Tw = | M2: 80 | N2: ℃ | O2: 熱流量の保存 | T2: 熱電対の誤差率
B3: 空気の熱伝導率（(Tw+Tf)/2） | E3: =-0.000000022933*((M2+M3)/2)^2+0.000072925*((M2+M3)/2)+0.024175 -> 0.02794035342 | F3: W/(m・K) | J3: 周囲流体温度 | L3: Tf = | M3: 25 | N3: ℃ | O3: x = 0 | P3: Qj - Qm(x=0) = | R3: =$R$8-$R$20 -> 7.639577586e-08 | U3: ηerr = (Tw - Tj)/(Tw - Tf) = | X3: =(M2-M4)/(M2-M3)*100 -> 5.370621053 | Y3: %
B4: 空気の動粘性係数（(Tw+Tf)/2） | E4: =(8.2925*0.00001*((M2+M3)/2)^2+9.4005*0.01*((M2+M3)/2)+13.4885)*0.000001 -> 1.865232453e-05 | F4: m2/s | J4: 測温接点温度 | L4: Tj = | M4: 77.04615842 | N4: ℃ | O4: x = lm | P4: Qm(x=lm) - Qm(x'=0) = | R4: =$R$21-$R$31 -> 1.141696392e-08
A5: 熱電対の種類 | J5: フィン部始端温度 | L5: T0' = | M5: 46.78605951 | N5: ℃ | R5: =ABS(R3)+ABS(R4) -> 8.781273977e-08
B6: T or K | E6: K | L6: 0
B7: 素線径 | D7: dm = | E7: 0.2 | F7: mm | J7: 測温接点の熱抵抗
A8: 測温接点（形状を球と仮定した場合） | J8: 式(30) | K8: Qj = (Tw-Tj)/Rj | Q8: Qj = | R8: =($M$2-$M$4)/$R$9 -> 0.0008154125921 | S8: W
B9: 直径 | D9: dj = | E9: =$E$7*2 -> 0.4 | F9: mm | G9: （dm×2） | J9: 式(10) | K9: Rj = 1/[2πka{(rj+gj)ln((rj+gj)/gj)-rj}] | Q9: Rj = | R9: =1/(2*PI()*$E$11*((($E$9/1000)/2+$E$10/1000)*LN((($E$9/1000)/2+$E$10/1000)/($E$10/1000))-($E$9/1000)/2)) -> 3622.511607
B10: 測定面との隙間 | D10: gj = | E10: 0.01 | F10: mm | J10: 素線露出部の温度分布（解析解）
B11: 隙間の熱伝導率 | D11: ka = | E11: 0.1 | F11: W/(m・K) | J11: 式(24) | K11: Tm(x) = B + C1 exp(A x/lm) + C2 exp(-A x/lm)
A12: 素線露出部 | J12: 式(24) | K12: A = √{(Rgm+Rhm)Rm/(Rgm Rhm)} | Q12: A = | R12: =SQRT(($R$17+$R$18)*$R$16/($R$17*$R$18)) -> 5.381826767
B13: 長さ | D13: lm = | E13: 17.5 | F13: mm | J13: 式(24) | K13: B = (RgmTf + RhmTw)/(Rgm+Rhm) | Q13: B = | R13: =($R$17*$M$3+$R$18*$M$2)/($R$17+$R$18) -> 75.58891656
B14: 素線の平均熱伝導率 | D14: km = | E14: =IF($E$6="T",211,IF($E$6="K",24.5)) -> 24.5 | F14: W/(m・K) | G14: （T→211，K→24.5） | J14: 式(24) | K14: C1 = [Tj exp(-A) - T0' + B{1-exp(-A)}] / {exp(-A) - exp(A)} | Q14: C1 = | R14: =($M$4*EXP(-$R$12)-$M$5+$R$13*(1-EXP(-$R$12)))/(EXP(-$R$12)-EXP($R$12)) -> -0.1325098426
B15: 測定面との隙間 | D15: gm = | E15: 0.0721 | F15: mm | G15: 2rm+gm = | H15: =$E$7+$E$15 -> 0.2721 | J15: 式(24) | K15: C2 = [Tj exp(A) - T0' + B{1-exp(A)}] / {exp(A) - exp(-A)} | Q15: C2 = | R15: =($M$4*EXP($R$12)-$M$5+$R$13*(1-EXP($R$12)))/(EXP($R$12)-EXP(-$R$12)) -> 1.589751702
B16: 隙間の熱伝導率 | D16: kg = | E16: =$E$2 -> 0.0298622288 | F16: W/(m・K) | G16: （空気→E2） | J16: 式(1) | K16: Rm = lm/(km 2πrm2) | Q16: Rm = | R16: =($E$13/1000)/($E$14*2*PI()*(($E$7/1000)/2)^2) -> 11368.21022
A17: フィン部（金属素線＋内側被覆＋シース） | J17: 式(11) | K17: 1/Rgm = -πkg(2lm) + 4kg(2lm)(rm+gm)/(2rm+gm)√((2rm+gm)/gm)×atan(√((2rm+gm)/gm)) | Q17: Rgm = | R17: =1/(-PI()*$E$16*(2*$E$13/1000)+4*$E$16*(2*$E$13/1000)*($E$7/2+$E$15)/$H$15*SQRT($H$15/$E$15)*ATAN(SQRT($H$15/$E$15))) -> 426.7170327
B18: シース直径 | D18: ds = | E18: =$E$7*8 -> 1.6 | F18: mm | G18: （dm×8） | J18: 式(7) | K18: Rhm = 1/(h πrm 2lm) | Q18: Rhm = | R18: =1/($E$26*PI()*$E$7/1000/2*$E$13/1000*2) -> 4893.843579 | T18: 金属素線の温度分布
B19: シースの熱伝導率 | D19: ks = | E19: 0.2 | F19: W/(m・K) | J19: 式(25) | K19: dTm(x)/dx = C1(A/lm)exp(A x/lm) - C2(A/lm)exp(-A x/lm) | T19: 素線露出部 | V19: フィン部 | X19: 素線露出部+フィン部
B20: 長さ | D20: ls' = | E20: 20 | F20: mm | J20: 式(25) | K20: Qm(x=0) = -(lm/Rm)[dTm(x)/dx](x=0) = -(lm/Rm)[C1(A/lm) - C2(A/lm)] | Q20: Qm(x=0) = | R20: =-($E$13/1000/$R$16)*($R$14*$R$12/($E$13/1000)-$R$15*$R$12/($E$13/1000)) -> 0.0008153361963 | S20: W | T20: x/lm | U20: Tm(x) | V20: x'/ls' | W20: Tm(x') | X20: x (mm) | Y20: Tm(x)
A21: 熱伝達率（対流＋放射） | J21: 式(25) | K21: Qm(x=lm) = -(lm/Rm)[dTm(x)/dx](x=lm) = -(lm/Rm)[C1(A/lm)exp(A) - C2(A/lm)exp(-A)] | Q21: Qm(x=lm) = | R21: =-($E$13/1000/$R$16)*($R$14*$R$12/($E$13/1000)*EXP($R$12)-$R$15*$R$12/($E$13/1000)*EXP(-$R$12)) -> 0.01364248963 | S21: W | T21: 0 | U21: =$R$13+$R$14*EXP($R$12*T21)+$R$15*EXP(-$R$12*T21) -> 77.04615842 | X21: =T21*$E$13 -> 0 | Y21: =U21 -> 77.04615842
B22: 周囲風速 | D22: u = | E22: 0.7 | F22: m/s | J22: フィン部の温度分布（解析解） | T22: 0.02 | U22: 76.86887167 | X22: 0.35 | Y22: =U22 -> 76.86887167
B23: 測定面の流れ方向辺長 | D23: L = | E23: 0.03 | F23: m | J23: 式(28) | K23: Tm(x') = Tf + C3 exp(D x'/ls') + C4 exp(-D x'/ls') | P23: (x' = x + lm) | T23: 0.04 | U23: 76.70642833 | X23: 0.7 | Y23: 76.70642833
D24: ReL* = | E24: =($E$22/1^2)*$E$23/$E$4 -> 1125.865034 | F24: NuL = | G24: =0.61*0.71^(1/3)*$E$24^0.5 -> 18.25965007 | H24: hcv = | I24: =$G$24*$E$3/$E$23 -> 17.00603587 | J24: 式(28) | K24: D = √{Rms'/(Rs'+Rhs')} | Q24: D = | R24: =SQRT($R$27/($R$28+$R$29)) -> 8.135767927 | T24: 0.06 | U24: 76.55694456 | X24: 1.05 | Y24: 76.55694456
B25: 金属素線の放射率 | D25: ε = | E25: 0.2 | H25: hrd = εσ(Tw4-Tf4)/(Tw-Tf) = | I25: =$E$25*0.0000000567*(($M$2+273.15)^4-($M$3+273.15)^4)/(($M$2+273.15)-($M$3+273.15)) -> 1.577656125 | J25: 式(28) | K25: C3 = [(T0' - Tf)exp(-D)] / {exp(-D) - exp(D)} | Q25: C3 = | R25: =(($M$5-$M$3)*EXP(-$R$24))/(EXP(-$R$24)-EXP($R$24)) -> -1.868703887e-06 | T25: 0.08 | U25: 76.41868683 | X25: 1.4 | Y25: 76.41868683
B26: 測定面熱伝達率(対流＋放射) | D26: h = | E26: =$I$24+$I$25 -> 18.583692 | F26: W/(m2・K) | G26: ← hcv + hrd | J26: 式(28) | K26: C4 = [(T0' - Tf)exp(D)] / {exp(D) - exp(-D)} | Q26: C4 = | R26: =(($M$5-$M$3)*EXP($R$24))/(EXP($R$24)-EXP(-$R$24)) -> 21.78606137 | T26: 0.1 | U26: 76.29005179 | X26: 1.75 | Y26: 76.29005179
D27: ReD = | E27: =$E$22*($E$18/1000)/$E$4 -> 60.04613517 | F27: NuD = | G27: =IF($E$27<4,0.891*$E$27^0.33,IF($E$27<40,0.821*$E$27^0.385,0.615*$E$27^0.466)) -> 4.146189558 | H27: hcv' = | I27: =G27*$E$3/($E$18/1000) -> 72.40375099 | J27: 式(16)' | K27: Rms' = ls'/(km 2πrm2) | N27: (式(16)のlc→ls') | Q27: Rms' = | R27: =$E$20/1000/($E$14*2*PI()*(($E$7/1000)/2)^2) -> 12992.24025 | T27: 0.12 | U27: 76.16954769 | X27: 2.1 | Y27: 76.16954769
B28: シース表面の放射率 | D28: ε' = | E28: 0.9 | H28: hrd' = ε'σ(Ts'4-Tf4)(Ts'-Tf) = | I28: =$E$28*0.0000000567*((($M$5+$M$3)/2+273.15)^4-($M$3+273.15)^4)/((($M$5+$M$3)/2+273.15)-($M$3+273.15)) -> 5.713676625 | J28: 式(17)' | K28: Rs' = ln{rs/((√2)rm)}/(2π ls' ks) | N28: (式(17)の2lc→ls', ki=ks) | Q28: Rs' = | R28: =LN($E$18/(SQRT(2)*$E$7))/(2*PI()*$E$20/1000*$E$19) -> 68.94862505 | T28: 0.14 | U28: 76.05577706 | X28: 2.45 | Y28: 76.05577706
B29: フィン部熱伝達率(対流＋放射) | D29: h' = | E29: =$I$27+$I$28 -> 78.11742762 | F29: W/(m2・K) | G29: ← hcv' + hrd' | J29: 式(18)' | K29: Rhs' = 1/(h' 2πrs ls') | N29: (式(18)の2lc→ls') | Q29: Rhs' = | R29: =1/($E$29*2*PI()*(($E$18/1000)/2)*($E$20/1000)) -> 127.3362967 | T29: 0.16 | U29: 75.94742052 | X29: 2.8 | Y29: 75.94742052
J30: 式(29) | K30: dTm(x')/dx' = C3(D/ls')exp(D x'/ls') - C4(D/ls')exp(-D x'/ls') | T30: 0.18 | U30: 75.84322149 | X30: 3.15 | Y30: 75.84322149
J31: 式(29) | K31: Qm(x'=0) = -(ls'/Rms')[dTm(x')/dx'](x'=0) = -(ls'/Rms')[C3(D/ls') - C4(D/ls')] | Q31: Qm(x'=0) = | R31: =-($E$20/1000/$R$27)*($R$25*$R$24/($E$20/1000)-$R$26*$R$24/($E$20/1000)) -> 0.01364247821 | S31: W | T31: 0.2 | U31: 75.74197158 | X31: 3.5 | Y31: 75.74197158
T32: 0.22 | U32: 75.64249662 | X32: 3.85 | Y32: 75.64249662
T33: 0.24 | U33: 75.54364302 | X33: 4.2 | Y33: 75.54364302
T34: 0.26 | U34: 75.4442644 | X34: 4.55 | Y34: 75.4442644
T35: 0.28 | U35: 75.34320826 | X35: 4.9 | Y35: 75.34320826
T36: 0.3 | U36: 75.2393027 | X36: 5.25 | Y36: 75.2393027
T37: 0.32 | U37: 75.13134273 | X37: 5.6 | Y37: 75.13134273
T38: 0.34 | U38: 75.01807636 | X38: 5.95 | Y38: 75.01807636
T39: 0.36 | U39: 74.89819006 | X39: 6.3 | Y39: 74.89819006
T40: 0.38 | U40: 74.77029353 | X40: 6.65 | Y40: 74.77029353
T41: 0.4 | U41: 74.63290359 | X41: 7 | Y41: 74.63290359
T42: 0.42 | U42: 74.48442694 | X42: 7.35 | Y42: 74.48442694
T43: 0.44 | U43: 74.32314174 | X43: 7.7 | Y43: 74.32314174
T44: 0.46 | U44: 74.14717757 | X44: 8.05 | Y44: 74.14717757
T45: 0.48 | U45: 73.95449383 | X45: 8.4 | Y45: 73.95449383
T46: 0.5 | U46: 73.742856 | X46: 8.75 | Y46: 73.742856
T47: 0.52 | U47: 73.50980974 | X47: 9.1 | Y47: 73.50980974
T48: 0.54 | U48: 73.25265247 | X48: 9.45 | Y48: 73.25265247
T49: 0.56 | U49: 72.96840198 | X49: 9.8 | Y49: 72.96840198
T50: 0.58 | U50: 72.65376187 | X50: 10.15 | Y50: 72.65376187
T51: 0.6 | U51: 72.30508332 | X51: 10.5 | Y51: 72.30508332
T52: 0.62 | U52: 71.91832277 | X52: 10.85 | Y52: 71.91832277
T53: 0.64 | U53: =$R$13+$R$14*EXP($R$12*T53)+$R$15*EXP(-$R$12*T53) -> 71.48899502 | X53: =T53*$E$13 -> 11.2 | Y53: 71.48899502
T54: 0.66 | U54: 71.01212125 | X54: 11.55 | Y54: 71.01212125
T55: 0.68 | U55: 70.48217124 | X55: 11.9 | Y55: 70.48217124
T56: 0.7 | U56: 69.89299925 | X56: 12.25 | Y56: 69.89299925
T57: 0.72 | U57: 69.23777277 | X57: 12.6 | Y57: 69.23777277
T58: 0.74 | U58: 68.50889326 | X58: 12.95 | Y58: 68.50889326
T59: 0.76 | U59: 67.69790804 | X59: 13.3 | Y59: 67.69790804
T60: 0.78 | U60: 66.79541227 | X60: 13.65 | Y60: 66.79541227
T61: 0.8 | U61: 65.79093986 | X61: 14 | Y61: 65.79093986
T62: 0.82 | U62: 64.67284215 | X62: 14.35 | Y62: 64.67284215
T63: 0.84 | U63: 63.42815275 | X63: 14.7 | Y63: 63.42815275
T64: 0.86 | U64: 62.04243724 | X64: 15.05 | Y64: 62.04243724
T65: 0.88 | U65: 60.49962574 | X65: 15.4 | Y65: 60.49962574
T66: 0.9 | U66: 58.78182655 | X66: 15.75 | Y66: 58.78182655
T67: 0.92 | U67: 56.86911866 | X67: 16.1 | Y67: 56.86911866
T68: 0.94 | U68: 54.73932077 | X68: 16.45 | Y68: 54.73932077
T69: 0.96 | U69: 52.367734 | X69: 16.8 | Y69: 52.367734
T70: 0.98 | U70: 49.7268555 | X70: 17.15 | Y70: 49.7268555
T71: 1 | U71: 46.78605951 | V71: 0 | W71: =$M$3+$R$25*EXP($R$24*V71)+$R$26*EXP(-$R$24*V71) -> 46.78605951 | X71: =$E$13+V71*$E$20 -> 17.5 | Y71: =W71 -> 46.78605951
V72: 0.02 | W72: 43.51451282 | X72: 17.9 | Y72: =W72 -> 43.51451282
V73: 0.04 | W73: 40.73424422 | X73: 18.3 | Y73: 40.73424422
V74: 0.06 | W74: 38.37147993 | X74: 18.7 | Y74: 38.37147993
V75: 0.08 | W75: 36.3635246 | X75: 19.1 | Y75: 36.3635246
V76: 0.1 | W76: 34.65709762 | X76: 19.5 | Y76: 34.65709762
V77: 0.12 | W77: 33.20691936 | X77: 19.9 | Y77: 33.20691936
V78: 0.14 | W78: 31.97450971 | X78: 20.3 | Y78: 31.97450971
V79: 0.16 | W79: 30.92716696 | X79: 20.7 | Y79: 30.92716696
V80: 0.18 | W80: 30.03710014 | X80: 21.1 | Y80: 30.03710014
V81: 0.2 | W81: 29.28069154 | X81: 21.5 | Y81: 29.28069154
V82: 0.22 | W82: 28.63787005 | X82: 21.9 | Y82: 28.63787005
V83: 0.24 | W83: 28.09157855 | X83: 22.3 | Y83: 28.09157855
V84: 0.26 | W84: 27.62732133 | X84: 22.7 | Y84: 27.62732133
V85: 0.28 | W85: 27.23277944 | X85: 23.1 | Y85: 27.23277944
V86: 0.3 | W86: 26.8974838 | X86: 23.5 | Y86: 26.8974838
V87: 0.32 | W87: 26.61253744 | X87: 23.9 | Y87: 26.61253744
V88: 0.34 | W88: 26.37037936 | X88: 24.3 | Y88: 26.37037936
V89: 0.36 | W89: 26.16458396 | X89: 24.7 | Y89: 26.16458396
V90: 0.38 | W90: 25.98969052 | X90: 25.1 | Y90: 25.98969052
V91: 0.4 | W91: 25.84105827 | X91: 25.5 | Y91: 25.84105827
V92: 0.42 | W92: 25.71474329 | X92: 25.9 | Y92: 25.71474329
V93: 0.44 | W93: 25.60739386 | X93: 26.3 | Y93: 25.60739386
V94: 0.46 | W94: 25.51616147 | X94: 26.7 | Y94: 25.51616147
V95: 0.48 | W95: 25.4386253 | X95: 27.1 | Y95: 25.4386253
V96: 0.5 | W96: 25.37272794 | X96: 27.5 | Y96: 25.37272794
V97: 0.52 | W97: 25.31672083 | X97: 27.9 | Y97: 25.31672083
V98: 0.54 | W98: 25.26911783 | X98: 28.3 | Y98: 25.26911783
V99: 0.56 | W99: 25.22865581 | X99: 28.7 | Y99: 25.22865581
V100: 0.58 | W100: 25.19426111 | X100: 29.1 | Y100: 25.19426111
V101: 0.6 | W101: 25.16502108 | X101: 29.5 | Y101: 25.16502108
V102: 0.62 | W102: 25.14015985 | X102: 29.9 | Y102: 25.14015985
V103: 0.64 | W103: =$M$3+$R$25*EXP($R$24*V103)+$R$26*EXP(-$R$24*V103) -> 25.11901773 | X103: =$E$13+V103*$E$20 -> 30.3 | Y103: 25.11901773
V104: 0.66 | W104: 25.10103371 | X104: 30.7 | Y104: 25.10103371
V105: 0.68 | W105: 25.08573059 | X105: 31.1 | Y105: 25.08573059
V106: 0.7 | W106: 25.07270232 | X106: 31.5 | Y106: 25.07270232
V107: 0.72 | W107: 25.06160318 | X107: 31.9 | Y107: 25.06160318
V108: 0.74 | W108: 25.05213867 | X108: 32.3 | Y108: 25.05213867
V109: 0.76 | W109: 25.04405765 | X109: 32.7 | Y109: 25.04405765
V110: 0.78 | W110: 25.03714568 | X110: 33.1 | Y110: 25.03714568
V111: 0.8 | W111: 25.03121937 | X111: 33.5 | Y111: 25.03121937
V112: 0.82 | W112: 25.02612146 | X112: 33.9 | Y112: 25.02612146
V113: 0.84 | W113: 25.02171667 | X113: 34.3 | Y113: 25.02171667
V114: 0.86 | W114: 25.01788812 | X114: 34.7 | Y114: 25.01788812
V115: 0.88 | W115: 25.01453424 | X115: 35.1 | Y115: 25.01453424
V116: 0.9 | W116: 25.01156602 | X116: 35.5 | Y116: 25.01156602
V117: 0.92 | W117: 25.0089047 | X117: 35.9 | Y117: 25.0089047
V118: 0.94 | W118: 25.00647966 | X118: 36.3 | Y118: 25.00647966
V119: 0.96 | W119: 25.00422656 | X119: 36.7 | Y119: 25.00422656
V120: 0.98 | W120: 25.00208561 | X120: 37.1 | Y120: 25.00208561
V121: 1 | W121: 25 | X121: 37.5 | Y121: 25
